Workbook

Sheet Протокол испытания
P1: 2016-02-10T09:46:38 | Q1: AGusev
A7: ИНН 7719838588/ КПП500301001, 142703, Московская обл., Ленинский р-н, г. Видное, ул. Школьная, д.26а,
A8: ОКПО 17265369 ОКВЭД 26.63 ОКТМО – 46628101 ОГРН 1137746192990
A9: ТЕЛ.8 (495) 740-03-66 доб. 4569, e-mail: m.lab@gradindustry.ru
A10: Свидетельство об аттестации испытательной лаборатории № 211/15 от 10 июля 2015 г.
I12: УТВЕРЖДАЮ:
I13: Начальник лаборатории
I14: ___________ Р.В. Кузнецов
I15: =I19 -> 2016-02-08
E17: ПРОТОКОЛ №: | G17: 1
B19: Дата поступления: | D19: 2016-02-08 | G19: Дата испытания: | I19: 2016-02-08
B20: Карьер/Поставщик: | D20: ООО Карьер
B21: Порода: | C21: гравий | H21: Фракция: | I21: 5(3):10 | L21: щебень из гравия | N21: 5(3):10
B22: Место хранения: | D22: Производственная база | L22: гравий | N22: 5:20
B23: Результаты испытаний:
B25: 1. Насыпная плотность щебня в естественном состоянии, кг/м³: | J25: 1475 | K25: кг/м³
B26: 2. Насыпная плотность щебня в сухом состоянии, кг/м³: | J26: 1487 | K26: кг/м³
B27: 3. Влажность щебня, % по массе: | J27: 0.0234
B28: 4. Зерновой состав:
I29: Таблица №1
B30: Размеры сит, мм | D30: Частные остатки, г | G30: Средние значения | I30: Полные остатки, %
D31: 1 | E31: 2 | F31: 3 | G31: г | H31: % | I31: факт. | J31: ч.о.,% по ГОСТ 26633-2012 (таблица №3):
B32: 25 | E32: - | F32: - | G32: =IF(SUM(D32:F32)/3=0,"",AVERAGE(D32:F32)) ->  | H32: =IF(G32="","",G32/100) ->  | I32: =IF(H32="",0,H32) -> 0
B33: 20 | D33: 624 | E33: - | F33: - | G33: =IF(SUM(D33:F33)/3=0,"",AVERAGE(D33:F33)) -> 624 | H33: =IF(G33="","",G33/100) -> 6.24 | I33: =IF(H32="",H33,I32+H33) -> 6.24
B34: 12,5 | D34: 3152 | E34: - | F34: - | G34: 3152 | H34: 31.52 | I34: =I33+H34 -> 37.76 | N34: 5(3):10 | O34: =IF(J36="","-",IF(J36<=90,"- не соответствует ГОСТ 26633-2012 п.3.5.2.4 таблица №3",IF(J36>=90,"- соответствует ГОСТ 26633-2012 п.3.5.2.4 таблица №3",IF(J36>100,"- не соответствует ГОСТ 26633-2012 п.3.5.2.4 таблица №3","-")))) -> - не соответствует ГОСТ 26633-2012 п.3.5.2.4 таблица №3
B35: 10 | D35: 2500 | E35: - | F35: - | G35: 2500 | H35: 25 | I35: =I34+H35 -> 62.76 | J35: =IF(I21=N22,SUM(H34:H35),"") ->  | N35: 5:20 | O35: =IF(J35="","-",IF(J35>75,"- не соответствует ГОСТ 26633-2012 п.3.5.2.4 таблица №3",IF(J35<60,"- не соответствует ГОСТ 26633-2012 п.3.5.2.4 таблица №3","- соответствует ГОСТ 26633-2012 п.3.5.2.4 таблица №3"))) -> -
B36: 7,5 | D36: 400 | E36: - | F36: - | G36: 400 | H36: 4 | I36: =IF(H36="","",I35+H36) -> 66.76 | J36: =IF(I21=N21,SUM(H36:H38),"") -> 26.01
B37: 5 | D37: 1971 | F37: - | G37: 1971 | H37: 19.71 | I37: =IF(I36="",I35+H37,I36+H37) -> 86.47
B38: 2.5 | D38: 230 | E38: - | F38: - | G38: 230 | H38: 2.3 | I38: =I37+H38 -> 88.77 | J38: =IF(I21=N22,SUM(H37:H38),"") ->  | M38: фр. 10:20 | N38: =IF(I21=N21,O34,IF(I21=N22,O35,)) -> - не соответствует ГОСТ 26633-2012 п.3.5.2.4 таблица №3
B39: Дно | D39: 258 | E39: - | F39: - | G39: 258 | H39: 2.58 | I39: =(I38+H39)/100 -> 0.9135 | M39: фр. 5:10 | N39: =IF(J38="","",IF(J38<25,"- не соответствует ГОСТ 26633-2012 п.3.5.2.4 таблица №3",IF(J38>40,"- не соответствует ГОСТ 26633-2012 п.3.5.2.4 таблица №3","- соответствует ГОСТ 26633-2012 п.3.5.2.4 таблица №3"))) -> 
B40: Примечание. Допустимые пределы зернового состава каждой фракции (смеси), ГОСТ 8267-93 таблица №1
B41: Размеры отверстий контрольных сит, мм | D41: Полный остаток на ситах, % по массе, зерен размером, мм
D42: дополнительное сито | F42: d | G42: 0,5 (d + D) | I42: D | J42: 1,25 D
D43: 2,5 (1,25) | F43: 5 (3)
B44: 5-20 и по фракциям, по согласованию | D44: 95…100 | F44: 90…100 | G44: 30…80 | I44: 0…10 | J44: 0…0,50
D45: для фр. 5-10 и 5-20 мм
B46: Фактические п.о.,% | D46: =I38 -> 88.77 | F46: =I37 -> 86.47 | G46: =I34 -> 37.76 | I46: =I33 -> 6.24 | J46: =I32 -> 0
L50: 5:20 | S50: 5(3):10
L51: нижняя | M51: верх. | N51: сита | O51: Остатки | S51: нижняя | T51: верх. | U51: сита | Y51: Нижняя предупредительная граница | Z51: Верхняя предупредительная граница | AA51: Полные остатки на сите
L52: 0 | M52: 0.5 | N52: 25 | O52: =I32 -> 0 | S52: 0 | T52: 0 | U52: 25 | V52: =I32 -> 0 | Y52: =IF(IF($I$21=$L$50,L52,S52)="",NA(),IF($I$21=$L$50,L52,S52)) -> 0 | Z52: =IF(IF($I$21=$L$50,M52,T52)="",NA(),IF($I$21=$L$50,M52,T52)) -> 0 | AA52: =IF(IF($I$21=$L$50,O52,V52)="",NA(),IF($I$21=$L$50,O52,V52)) -> 0
L53: 0 | M53: 10 | N53: 20 | O53: =I33 -> 6.24 | S53: 0 | T53: 0 | U53: 20 | V53: =I33 -> 6.24 | Y53: =IF(IF($I$21=$L$50,L53,S53)="",NA(),IF($I$21=$L$50,L53,S53)) -> 0 | Z53: =IF(IF($I$21=$L$50,M53,T53)="",NA(),IF($I$21=$L$50,M53,T53)) -> 0 | AA53: =IF(IF($I$21=$L$50,O53,V53)="",NA(),IF($I$21=$L$50,O53,V53)) -> 6.24
L54: 30 | M54: 80 | N54: 12,5 | O54: =I34 -> 37.76 | S54: 0 | T54: 0.5 | U54: 12,5 | V54: 37.76 | Y54: 0 | Z54: 0.5 | AA54: =IF(IF($I$21=$L$50,O54,V54)="",NA(),IF($I$21=$L$50,O54,V54)) -> 37.76
L55: 60 | M55: 90 | N55: 10 | O55: =I35 -> 62.76 | S55: 0 | T55: 10 | U55: 10 | V55: 62.76 | Y55: 0 | Z55: 10 | AA55: =IF(IF($I$21=$L$50,O55,V55)="",NA(),IF($I$21=$L$50,O55,V55)) -> 62.76
L56: 90 | M56: 100 | N56: 5 | O56: =I37 -> 86.47 | S56: 30 | T56: 60 | U56: 7.5 | V56: 66.76 | Y56: 30 | Z56: 60 | AA56: =IF(IF($I$21=$L$50,O56,V56)="",NA(),IF($I$21=$L$50,O56,V56)) -> 66.76
L57: 95 | M57: 100 | N57: 2,5 | O57: =I38 -> 88.77 | S57: 90 | T57: 100 | U57: 5 | V57: 86.47 | Y57: 90 | Z57: 100 | AA57: =IF(IF($I$21=$L$50,O57,V57)="",NA(),IF($I$21=$L$50,O57,V57)) -> 86.47
N58: =B39 -> Дно | S58: 95 | T58: 100 | U58: 2.5 | V58: 88.77 | Y58: 95 | Z58: 100 | AA58: =IF(IF($I$21=$L$50,O58,V58)="",NA(),IF($I$21=$L$50,O58,V58)) -> 88.77
U59: Дно
B61: 5. Показатель дробимости испытуемой фракции щебня (гравия):
I62: Таблица
B63: Показатель дробимости, % | F63: Марка по дробимости щебня (гравия) | L63: =IF(C21=L22,IF(B64<=10,1000,IF(B64<=14,800,IF(B64<=18,600,IF(B64<=26,400))))) -> 1000 | M63: =IF(C21=L21,IF(B64<=10,1000,IF(B64<=14,800,IF(B64<=18,600,IF(B64<=26,400))))) -> FALSE
B64: 7.8 | F64: =IF(M63=FALSE,L63,M63) -> 1000
B66: 6. Содержание пылевидных и глинистых частиц, % по массе: | J66: 0.009
B67: 7. Истинная плотность исходной горной породы и зерен щебня (гравия), г/см³ | J67: 2.674 | K67: г/см³
B68: 8. Пустотность, %: | J68: =(1-(J26/(J67*1000))) -> 0.4439042633
B69: 9. Содержание зерен пластинчатой (лещадной) и игловатой форм, % по массе: | J69: 0.1
B70: 10. Содержание дробленых зерен в щебне из гравия, % по массе: | J70: 0.81
B71: 11. Другие виды испытания: "Содержание глины в комках, %" | J71: 0
B72: 12. Радиационно-гигиеническая оценка указанная предприятием-изготовителем: | J72: 370 | K72: Бк/кг
B74: З А К Л Ю Ч Е Н И Е:
B75: 1. Зерновой состав реокмендуемое содержание отдельных фракций в крупном заполнителе в составе бетона согласно таблице№3 ГОСТ 26633-2012:
B76: =IF(I21=N21,M39,M38) -> фр. 5:10 | C76: =N38 -> - не соответствует ГОСТ 26633-2012 п.3.5.2.4 таблица №3
B77: =IF(I21=N21,"",M39) ->  | C77: =IF(N39="","",N39) -> 
B78: 2. Допустимые пределы каждой фракции (смеси), согласно ГОСТ 8267-93:
B79: а. | C79: 2,5(1,25) | D79: =IF(D46<=95,"- не соответствует ГОСТ 8267-93 п.4.2.2 таблица №1",IF(D46>=100,"- не соответствует ГОСТ 8267-93 п.4.2.2 таблица №1","- соответствует ГОСТ 8267-93 п.4.2.2 таблица №1")) -> - не соответствует ГОСТ 8267-93 п.4.2.2 таблица №1
B80: б. | C80: 5(3) | D80: =IF(F46<=90,"- не соответствует ГОСТ 8267-93 п.4.2.2 таблица №1",IF(F46>=100,"- не соответствует ГОСТ 8267-93 п.4.2.2 таблица №1","- соответствует ГОСТ 8267-93 п.4.2.2 таблица №1")) -> - не соответствует ГОСТ 8267-93 п.4.2.2 таблица №1
B81: в. | C81: 0,5(d+D) | D81: =IF(G46<=30,"- не соответствует ГОСТ 8267-93 п.4.2.2 таблица №1",IF(G46>=80,"- не соответствует ГОСТ 8267-93 п.4.2.2 таблица №1","- соответствует ГОСТ 8267-93 п.4.2.2 таблица №1")) -> - соответствует ГОСТ 8267-93 п.4.2.2 таблица №1
B82: г. | C82: D | D82: =IF(I46<=0,"- не соответствует ГОСТ 8267-93 п.4.2.2 таблица №1",IF(I46>=10,"- не соответствует ГОСТ 8267-93 п.4.2.2 таблица №1","- соответствует ГОСТ 8267-93 п.4.2.2 таблица №1")) -> - соответствует ГОСТ 8267-93 п.4.2.2 таблица №1
B83: д. | C83: 1,25 D | D83: =IF(J46>0.5,"- не соответствует ГОСТ 8267-93 п.4.2.2 таблица №1","- соответствует ГОСТ 8267-93 п.4.2.2 таблица №1") -> - соответствует ГОСТ 8267-93 п.4.2.2 таблица №1
B84: 3. Марки по дробимости щебня из гравия и гравия должны соответствовать требованиям, указанным в таблице №5: | L84: =F64 -> 1000 | O84: Марка дробимости допускает применять щебень из гравия для классов бетона В27,5 и ниже
B85: =IF(L84=800,O84,IF(L84=1000,O85,IF(L84=600,""))) -> Марка дробимости допускает применять щебень из гравия для классов бетона ниже В30 и выше | O85: Марка дробимости допускает применять щебень из гравия для классов бетона ниже В30 и выше
B86: 4. Содержание пылевидных и глинистых частиц вщебне из изверженных и метаморфических пород, щебне из гравия и в гравии не должно превышать 1%:
B87: =IF(J66<=1%,"- соответствует ГОСТ 26633-2012 п.3.5.2.5",IF(J66>1%,"- не соответствует ГОСТ 26633-2012 п.3.5.2.5")) -> - соответствует ГОСТ 26633-2012 п.3.5.2.5
B88: 5. Крупные заполнители должны иметь среднюю истинную плотность зерен от 2,000 до 3,000 г/см³
B89: =IF(J67<2,"- не соответствует ГОСТ 26633-2012 п.3.5.2.1",IF(J67>3,"- не соответствует ГОСТ 26633-2012 п.3.5.2.1","- соответствует ГОСТ 26633-2012 п.3.5.2.1")) -> - соответствует ГОСТ 26633-2012 п.3.5.2.1
B90: 6. Содержание зерен пластичной (лещадной) и игловатой формы в крупном заполнителе не должно превышать 35% массы:
B91: =IF(J69<35%,"- соответствует ГОСТ 26633-2012 п.3.5.2.6",IF(J69>35%,"- не соответствует ГОСТ 26633-2012 п.3.5.2.6","")) -> - соответствует ГОСТ 26633-2012 п.3.5.2.6
B92: 7. Щебень из гравия и валунов должен содержать дробленные зерна в колличестве не менее 80% по массе:
B93: =IF(J70>80%,"- соответствует ГОСТ 8267-93 п.4.3.1",IF(J70<80%,"- не соответствует ГОСТ 8267-93 п.4.3.1","")) -> - соответствует ГОСТ 8267-93 п.4.3.1
B94: 8. Содержание глины в комках не должно быть более указанного в таблице №10:
B95: =IF(J71<0.25,"- соответствует ГОСТ 8267-93 п.4.7.2",IF(J71>0.25,"- не соответствует ГОСТ 8267-93 п.4.7.2","")) -> - соответствует ГОСТ 8267-93 п.4.7.2
B96: 9. Щебень/щебень из гравия в зависимости от значений удельной эффективности естественных радионуклидов Аэфф. По результатам которой устанавливают область его применения согласно ГОСТ 8267-93 п.4.9.:
B97: =IF(N97<=370,O97,IF(N97>370,O98,IF(N97<=740,O98,IF(N97>740,O99,IF(N97<=1500,O99))))) -> щебень/щебень из гравия приемлем во вновь строящихся жилых и общественных зданиях; | N97: =J72 -> 370 | O97: щебень/щебень из гравия приемлем во вновь строящихся жилых и общественных зданиях;
O98: щебень/щебень из гравия приемлем для дорожного строительства в пределах территории населенных пунктов и зон перспективной застройки, а также при возведении производственных зданий и сооружений;
O99: щебень/щебень из гравия приемлем в дорожном строительстве вне населенных пунктов;
B100: Примечание: Запрещается частичная перепечатка данного протокола без согласования с испытательной лабораторией
L101: Болтенкова И.Ю.
L102: Кубакова Л.Р.
L103: Приходько В.А.
L104: Сухоручкин С.В.
B105: Испытания провел лаборант: | H105: / | I105: Сухоручкин С.В. | K105: /
F106: (подпись) | I106: (Ф.И.О.)

Sheet Лист2

Sheet Лист3
